lending/lending_fUSD_20260310
["ID","MTS","AMOUNT","RATE_DAILY","PERIOD"]
[408076005,1773112232477,-500.0,0.00015,30]
[408076007,1773112232485,-500.0,0.00015,30]
[408076009,1773112232494,-500.0,0.00015,30]
[408076010,1773112232504,-500.0,0.00015,30]
[408076012,1773112232513,-500.0,0.00015,30]
[408076014,1773112232522,-500.0,0.00015,30]
[408076016,1773112232532,-500.0,0.00015,30]
[408076018,1773112232541,-500.0,0.00015,30]
[408076020,1773112232550,-500.0,0.00015,30]
[408076022,1773112232559,-974.75005335,0.00015,30]
[408076023,1773112232568,-500.0,0.00015,30]
[408076024,1773112232576,-500.0,0.00015,30]
[408076025,1773112232585,-500.0,0.00015,30]
[408076026,1773112232594,-500.0,0.00015,30]
[408076027,1773112232604,-500.0,0.00015,30]
[408076028,1773112232613,-500.0,0.00015,30]
[408076029,1773112232622,-500.0,0.00015,30]
[408076030,1773112232632,-500.0,0.00015,30]
[408076031,1773112232641,-500.0,0.00015,30]
[408076032,1773112232650,-500.0,0.00015,30]
[408076033,1773112232659,-500.0,0.00015,30]
[408076034,1773112232669,-500.0,0.00015,30]
[408076035,1773112232678,-500.0,0.00015,30]
[408076036,1773112232687,-500.0,0.00015,30]
[408076037,1773112232697,-500.0,0.00015,30]
[408076038,1773112232706,-500.0,0.00015,30]
[408076039,1773112232715,-500.0,0.00015,30]
[408076040,1773112232726,-500.0,0.00015,30]
[408076041,1773112232735,-502.65445064,0.00015,30]
[408076042,1773112232745,-500.0,0.00015,30]
[408076043,1773112232754,-783.06526647,0.00015,30]
[408076044,1773112232763,-500.0,0.00015,30]
[408076045,1773112232772,-500.0,0.00015,30]
[408076046,1773112232786,-500.0,0.00015,30]
[408076047,1773112232795,-500.0,0.00015,30]
[408076048,1773112232804,-500.0,0.00015,30]
[408076049,1773112232813,-500.0,0.00015,30]
[408076050,1773112232823,-500.0,0.00015,30]
[408076051,1773112232832,-500.0,0.00015,30]
[408076052,1773112232841,-500.0,0.00015,30]
[408076053,1773112232851,-500.0,0.00015,30]
[408076054,1773112232860,-500.0,0.00015,30]
[408076055,1773112232870,-179.88,0.00015075,2]
[408076056,1773112232879,-166.66,0.00015114,2]
[408076057,1773112232889,-1517.64,0.000153,2]
[408076058,1773112232899,-510.95848358,0.000154,2]
[408076059,1773112232908,-166.66,0.00015425,2]
[408076060,1773112232918,-179.88,0.00015518,2]
[408076061,1773112232927,-250.0,0.00015573,2]
[408076063,1773112232936,-252.0,0.00015573,2]
[408076065,1773112232944,-150.0,0.00015577,2]
[408076067,1773112232954,-167.0,0.00015579,3]
[408076069,1773112232963,-158.0,0.00015579,3]
[408076071,1773112232972,-166.66,0.00015737,2]
[408076073,1773112232981,-2251.82004778,0.00015807,2]
[408076075,1773112232990,-3099.99,0.00015952,2]
[408076077,1773112233000,-179.88,0.00015961,2]
[408076079,1773112233009,-1826.44908998,0.00016003,2]
[408076081,1773112233018,-200.0,0.00016019,2]
[408076083,1773112233027,-1600.0,0.00016039,2]
[408076085,1773112233036,-166.66,0.00016048,2]
[408076087,1773112233045,-166.66,0.00016106,2]
[408076089,1773112233054,-155.0,0.00016124,2]
[408076090,1773112233063,-249.008968,0.0001617,2]
[408076091,1773112233072,-5000.00830357,0.000162,5]
[408076092,1773112233081,-2968.82569932,0.000163,2]
[408076093,1773112233090,-170.865645,0.00016347,2]
[408076094,1773112233100,-3099.99,0.00016351,2]
[408076095,1773112233109,-166.66,0.0001636,2]
[408076096,1773112233118,-229.21,0.00016378,2]
[408076097,1773112233127,-179.88,0.00016405,2]
[408076098,1773112233407,-1680.0,0.00016487,2]
[408076099,1773112233429,-732.6911822,0.00016491,2]
[408076100,1773112233439,-765.02471323,0.00016631,2]
[408076101,1773112233449,-150.0,0.00016694,7]
[408076102,1773112233458,-165.392725,0.00016694,7]
[408076103,1773112233467,-180.78545,0.00016694,7]
[408076104,1773112233476,-196.178175,0.00016694,7]
[408076105,1773112233485,-211.5709,0.00016694,7]
[408076106,1773112233495,-226.963625,0.00016694,7]
[408076107,1773112233504,-242.35635,0.00016694,7]
[408076108,1773112233513,-257.749075,0.00016694,7]
[408076109,1773112233522,-273.1418,0.00016694,7]
[408076110,1773112233531,-288.534525,0.00016694,7]
[408076111,1773112233540,-3099.99,0.00016749,2]
[408076112,1773112233550,-166.66,0.00016771,2]
[408076113,1773112233559,-179.88,0.00016848,2]
[408076114,1773112233569,-2930.42307072,0.000169,2]
[408076115,1773112233578,-4838.77113528,0.00016999,2]
[408076116,1773112233588,-196.91493089,0.00016999,2]
[408076117,1773112233597,-500.0,0.00016999,2]
[408076118,1773112233606,-306.38269565,0.00016999,2]
[408076119,1773112233615,-90663.86714046,0.00017,2]
[408076120,1773112233625,-504.0,0.00017,2]
[408076121,1773112233635,-835.01558481,0.000171,2]
[408076122,1773112233648,-2259.36983621,0.000171,2]
[408076123,1773112233657,-1224.06267919,0.0001711,2]
[408076125,1773112238149,-1643.79473967,0.000169,2]
[408076126,1773112238159,-19190.06545798,0.0001711,2]
[408076127,1773112238169,-2918.43153005,0.00017123,2]
[408076128,1773112238202,-168.72846995,0.00017123,2]
[408076129,1773112238212,-135.27153005,0.00017143,3]
[408076130,1773112238309,-364.72846995,0.00017143,3]
[408076131,1773112238319,-2426.4876483,0.00017148,2]
[408076132,1773112238364,-543.04506331,0.00017148,2]
[408076148,1773112240356,-130.45728839,0.00017148,2]
[408076149,1773112240366,-2930.42307064,0.0001723,2]
[408076150,1773112240375,-229.21,0.00017288,2]
[408076151,1773112240385,-166.56805995,0.000174,3]
[408076152,1773112240394,-199.41676181,0.000174,3]
[408076153,1773112240404,-193.55902515,0.000174,3]
[408076154,1773112240413,-203.05605523,0.000174,3]
[408076155,1773112240422,-166.66,0.00017435,2]
[408076156,1773112240432,-4309.50557894,0.00017473,2]
[408076157,1773112240441,-3099.99,0.00017547,2]
[408076158,1773112240451,-2930.42307064,0.0001756,2]
[408076159,1773112240460,-1002.05261053,0.00017563,2]
[408076160,1773112240470,-500.0,0.00017564,2]
[408076161,1773112240479,-500.0,0.00017564,2]
[408076162,1773112240488,-500.0,0.00017564,2]
[408076163,1773112240498,-500.0,0.00017564,2]
[408076164,1773112240507,-500.0,0.00017564,2]
[408076165,1773112240516,-282.38588117,0.00017564,2]
[408076166,1773112240526,-500.0,0.00017564,2]
[408076167,1773112240535,-377.62285697,0.00017564,2]
[408076168,1773112240544,-500.0,0.00017564,2]
[408076169,1773112240554,-192.7216336,0.00017564,2]
[408076170,1773112240563,-574.00092423,0.00017564,2]
[408076171,1773112240572,-500.0,0.00017573,2]
[408076172,1773112240582,-167.15928799,0.00017573,2]
[408076173,1773112240592,-281.78993835,0.00017573,2]
[408076174,1773112240604,-218.21006165,0.00017573,2]
[408076175,1773112240614,-505.68899254,0.00017573,2]
[408076176,1773112240624,-198.28427999,0.00017573,2]
[408076177,1773112240635,-301.71572001,0.00017573,2]
[408076178,1773112240646,-500.41442074,0.00017573,2]
[408076179,1773112240655,-501.82953489,0.00017573,2]
[408076180,1773112240665,-240.29440748,0.00017573,2]
[408076181,1773112240674,-500.2116508,0.00017573,2]
[408076182,1773112240683,-160.0,0.00017719,3]
[408076183,1773112240694,-1025.275435,0.00017728,2]
[408076184,1773112240704,-306.10710901,0.00017728,2]
[408076185,1773112240744,-1587.711,0.00017728,2]
[408076186,1773112240755,-552.48645599,0.00017728,2]
[408076187,1773112240764,-5509.08874052,0.00017728,2]
[408076188,1773112240776,-6465.33110218,0.00017728,2]
[408076189,1773112240792,-500.0,0.00017728,2]
[408076190,1773112240803,-17525.5701573,0.00017728,2]
[408076191,1773112240813,-2798.92,0.00017728,2]
[408076192,1773112240823,-4309.50557892,0.0001774,2]
[408076193,1773112240833,-300.0,0.000178,6]
[408076194,1773112240842,-2000.0,0.00017861,2]
[408076195,1773112240851,-150.0,0.00017877,2]
[408076196,1773112240862,-2930.42307064,0.00017891,2]
[408076197,1773112240872,-600.0,0.000179,6]
[408076198,1773112240881,-2216.0,0.00017905,2]
[408076199,1773112240891,-13457.76362143,0.00018,5]
[408076200,1773112240900,-481.01471195,0.00018,2]
[408076201,1773112240910,-1197.75782958,0.00018,2]
[408076202,1773112240919,-4309.50557892,0.00018006,2]
[408076203,1773112240929,-1600.0,0.00018044,2]
[408076204,1773112240939,-166.66,0.000181,2]
[408076205,1773112240948,-1787.54805324,0.000181,2]
[408076206,1773112240958,-288.48885962,0.00018121,2]
[408076207,1773112240967,-161.86139248,0.00018121,2]
[408076208,1773112240977,-508.91575534,0.00018121,2]
[408076209,1773112240986,-1349.0,0.00018136,2]
[408076210,1773112240996,-229.21,0.00018198,2]
[408076211,1773112241007,-3552.71969971,0.0001821,2]
[408076212,1773112241016,-2930.42307064,0.00018221,2]
[408076213,1773112241025,-4309.50557892,0.00018273,2]
[408076214,1773112241035,-500.0,0.00018356,7]
[408076215,1773112241046,-500.0,0.00018356,7]
[408076216,1773112241056,-500.0,0.00018356,7]
[408076217,1773112241068,-1000.0,0.00018492,2]
[408076218,1773112241078,-500.0,0.00018492,2]
[408076219,1773112241088,-4309.50557892,0.00018539,2]
[408076220,1773112241098,-2930.42307064,0.00018551,2]
[408076221,1773112241107,-2834.0,0.0001872,2]
[408076222,1773112241117,-166.66,0.00018764,2]
[408076223,1773112241126,-91812.972,0.00018804,2]
[408076224,1773112241136,-4309.50557892,0.00018806,2]
[408076225,1773112241145,-2930.42307064,0.00018881,2]
[408076226,1773112241155,-1000.0,0.000189,6]
[408076227,1773112241164,-152.0,0.00018917,3]
[408076228,1773112241174,-1000.0,0.00018925,2]
[408076229,1773112241183,-169.9585,0.00018925,2]
[408076230,1773112241192,-9728.39527393,0.00018962,2]
[408076231,1773112241201,-5000.0,0.00018962,2]
[408076232,1773112241210,-5000.0,0.00018962,2]
[408076233,1773112241220,-168.0,0.00018986,2]
[408076234,1773112241229,-500.0,0.00019,7]
[408076235,1773112241238,-500.0,0.00019,7]
[408076236,1773112241247,-356.06,0.00019,7]
[408076237,1773112241256,-1291.15373162,0.00019,2]
[408076238,1773112241266,-2568.02714222,0.00019,2]
[408076239,1773112241275,-160.34163372,0.00019014,2]
[408076240,1773112241284,-168.0,0.00019017,2]
[408076241,1773112241294,-500.0,0.00019024,2]
[408076242,1773112241303,-514.89612966,0.00019024,2]
[408076243,1773112241312,-500.0,0.00019024,2]
[408076244,1773112241321,-500.0,0.00019024,2]
[408076245,1773112241330,-500.0,0.00019024,2]
[408076246,1773112241339,-2342.12,0.00019024,2]
[408076247,1773112241349,-2342.12,0.00019024,2]
[408076248,1773112241358,-500.0,0.00019024,2]
[408076249,1773112241367,-501.77338633,0.00019024,2]
[408076250,1773112241376,-507.77819291,0.00019024,2]
[408076251,1773112241386,-500.0,0.00019024,2]
[408076252,1773112241395,-545.09,0.00019024,2]
[408076253,1773112241405,-500.0,0.00019024,2]
[408076254,1773112241414,-500.0,0.00019024,2]
[408076255,1773112241423,-500.0,0.00019024,2]
[408076256,1773112241433,-500.0,0.00019024,2]
[408076257,1773112241442,-500.0,0.00019024,2]
[408076258,1773112241451,-500.0,0.00019024,2]
[408076259,1773112241461,-502.14275911,0.00019024,2]
[408076260,1773112241470,-500.0,0.00019024,2]
[408076261,1773112241479,-838.2,0.00019024,2]
[408076262,1773112241489,-1000.0,0.0001904,2]
[408076263,1773112241499,-218.0,0.00019066,2]
[408076264,1773112241508,-4309.50557892,0.00019072,2]
[408076265,1773112241518,-160.34163372,0.00019096,2]
[408076266,1773112241527,-1227.40844035,0.000191,2]
[408076267,1773112241537,-229.21,0.00019108,2]
[408076268,1773112241546,-500.0,0.00019127,2]
[408076269,1773112241555,-507.27777235,0.00019136,2]
[408076270,1773112241565,-514.78454423,0.00019136,2]
[408076271,1773112241575,-500.0,0.00019136,2]
[408076272,1773112241585,-500.0,0.00019136,2]
[408076273,1773112241594,-511.40789189,0.00019136,2]
[408076274,1773112241604,-500.0,0.00019136,2]
[408076275,1773112241614,-519.79032299,0.00019136,2]
[408076276,1773112241623,-838.2,0.00019136,2]
[408076277,1773112241632,-545.09,0.00019137,2]
[408076278,1773112241642,-500.0,0.00019138,2]
[408076279,1773112241651,-500.0,0.00019138,2]
[408076280,1773112241660,-626.93,0.00019178,2]
[408076281,1773112241670,-787.0,0.00019178,2]
[408076282,1773112241679,-1000.0,0.00019178,2]
[408076283,1773112241688,-1000.0,0.000192,2]
[408076284,1773112241697,-2000.0,0.000192,2]
[408076285,1773112241706,-160.34163372,0.00019205,2]
[408076286,1773112241716,-168.0,0.00019214,2]
[408076287,1773112241725,-168.0,0.00019247,2]
[408076288,1773112241734,-168.0,0.0001926,2]
[408076289,1773112241744,-621.42600632,0.00019273,2]
[408076290,1773112241753,-500.0,0.00019313,2]
[408076291,1773112241762,-2009.56284127,0.00019313,2]
[408076292,1773112241771,-160.34163372,0.00019315,2]
[408076293,1773112241783,-296.0,0.00019324,2]
[408076294,1773112241792,-504.0,0.00019333,4]
[408076295,1773112241801,-500.0,0.00019338,2]
[408076296,1773112241811,-2342.12,0.00019338,2]
[408076297,1773112241820,-4309.50557892,0.00019339,2]
[408076298,1773112241831,-922.0,0.00019367,2]
[408076299,1773112241840,-1213.0,0.00019367,2]
[408076300,1773112241849,-5995.0,0.00019367,2]
[408076301,1773112241860,-2461.0,0.00019367,2]
[408076302,1773112241869,-414.0,0.00019367,2]
[408076303,1773112241878,-595.0,0.0001941,2]
[408076304,1773112241887,-294.0,0.0001941,2]
[408076305,1773112241896,-160.34163372,0.00019425,2]
[408076306,1773112241905,-500.0,0.00019448,2]
[408076307,1773112241914,-204.83861542,0.00019448,2]
[408076308,1773112241923,-500.0,0.00019448,2]
[408076309,1773112241932,-500.0,0.00019448,2]
[408076310,1773112241941,-150.0,0.00019448,2]
[408076311,1773112241951,-150.51586392,0.00019448,2]
[408076312,1773112241960,-150.0,0.00019448,2]
[408076313,1773112241969,-150.0,0.00019448,2]
[408076314,1773112241978,-151.19383815,0.00019448,2]
[408076315,1773112241987,-500.0,0.00019448,2]
[408076316,1773112241996,-150.0,0.00019448,2]
[408076317,1773112242006,-150.0,0.00019448,2]
[408076318,1773112242016,-500.0,0.00019452,7]
[408076319,1773112242025,-500.0,0.00019452,7]
[408076320,1773112242034,-787.0,0.00019452,2]
[408076321,1773112242043,-1000.0,0.00019452,2]
[408076322,1773112242053,-357.30831779,0.00019477,2]
[408076323,1773112242061,-202.0,0.00019498,2]
[408076324,1773112242071,-41582.77327486,0.000195,3]
[408076325,1773112242080,-500.0,0.00019503,2]
[408076326,1773112242089,-513.38232266,0.00019503,2]
[408076327,1773112242098,-500.0,0.00019503,2]
[408076328,1773112242107,-150.0,0.00019503,2]
[408076329,1773112242117,-159.60904999,0.00019503,2]
[408076330,1773112242126,-508.22060755,0.00019503,2]
[408076331,1773112242136,-231.17936295,0.00019503,2]
[408076332,1773112242430,-150.0,0.00019503,2]
[408076333,1773112242439,-150.54749687,0.00019503,2]
[408076334,1773112242448,-160.34163372,0.00019534,2]
[408076335,1773112242458,-160.61378813,0.00019558,2]
[408076336,1773112242467,-450.0,0.00019558,2]
[408076337,1773112242476,-150.0,0.00019558,2]
[408076338,1773112242485,-1000.0,0.00019588,2]
[408076339,1773112242494,-1130.3885317,0.000196,2]
[408076340,1773112242503,-1300.0,0.000196,7]
[408076341,1773112242513,-4309.50557892,0.00019605,2]
[408076342,1773112242522,-160.34163372,0.00019616,2]
[408076343,1773112242532,-25059.83,0.0001962,8]
[408076344,1773112242542,-150.11,0.0001962,8]
[408076345,1773112242551,-500.0,0.00019661,2]
[408076346,1773112242560,-2342.12,0.00019661,2]
[408076347,1773112242569,-500.0,0.00019662,2]
[408076348,1773112242579,-500.0,0.00019662,2]
[408076349,1773112242588,-500.0,0.00019662,2]
[408076350,1773112242598,-2342.12,0.00019662,2]
[408076351,1773112242608,-2342.12,0.00019662,2]
[408076352,1773112242617,-2342.12,0.00019662,2]
[408076353,1773112242626,-500.0,0.00019662,2]
[408076354,1773112242635,-500.0,0.00019662,2]
[408076355,1773112242644,-500.0,0.00019662,2]
[408076356,1773112242653,-500.0,0.00019662,2]
[408076357,1773112242663,-500.0,0.00019662,2]
[408076358,1773112242672,-500.0,0.00019662,2]
[408076359,1773112242681,-838.2,0.00019662,2]
[408076360,1773112242690,-838.2,0.00019662,2]
[408076361,1773112242699,-260.37,0.00019662,2]
[408076362,1773112242708,-545.09,0.00019666,2]
[408076363,1773112242717,-500.0,0.00019666,2]
[408076364,1773112242727,-500.0,0.00019666,2]
[408076365,1773112242737,-500.0,0.00019666,2]
[408076366,1773112242746,-500.0,0.00019666,2]
[408076367,1773112242755,-500.0,0.00019666,2]
[408076368,1773112242764,-500.0,0.00019666,2]
[408076369,1773112242773,-838.2,0.00019666,2]
[408076370,1773112242788,-838.2,0.00019666,2]
[408076371,1773112242797,-172.91703981,0.000197,7]
[408076372,1773112242807,-1600.0,0.000197,7]
[408076373,1773112242816,-787.0,0.00019726,2]
[408076374,1773112242827,-160.34163372,0.00019726,2]
[408076375,1773112242836,-1000.0,0.00019726,2]
[408076376,1773112242845,-1459.33187,0.0001977,2]
[408076377,1773112242855,-1459.33188,0.0001977,2]
[408076378,1773112242864,-1459.33188,0.0001977,2]
[408076379,1773112242874,-200.0,0.00019795,2]
[408076380,1773112242883,-500.0,0.00019799,2]
[408076381,1773112242893,-500.0,0.00019799,2]
[408076382,1773112242902,-2342.12,0.00019799,2]
[408076383,1773112242911,-2342.12,0.00019799,2]
[408076384,1773112242920,-545.09,0.00019799,2]
[408076385,1773112242929,-545.09,0.00019799,2]
[408076386,1773112242938,-545.09,0.00019799,2]
[408076387,1773112242947,-545.09,0.00019799,2]
[408076388,1773112242956,-500.0,0.00019799,2]
[408076389,1773112242966,-500.0,0.00019799,2]
[408076391,1773112242975,-838.2,0.00019799,2]
[408076393,1773112242984,-838.2,0.00019799,2]
[408076395,1773112242993,-838.2,0.00019799,2]
[408076396,1773112243003,-300.0,0.000198,7]
[408076397,1773112243011,-160.34163372,0.00019836,2]
[408076398,1773112243021,-85906.1189458,0.0001984,2]
[408076399,1773112243030,-151.0,0.0001984,2]
[408076400,1773112243039,-169.36279,0.0001984,2]
[408076401,1773112243048,-151.0,0.0001984,2]
[408076402,1773112243057,-199.207104,0.0001984,2]
[408076403,1773112243067,-151.0,0.0001984,2]
[408076404,1773112243076,-253.548355,0.0001984,2]
[408076405,1773112243086,-253.548355,0.0001984,2]
[408076406,1773112243095,-253.548355,0.0001984,2]
[408076407,1773112243104,-574.893454,0.0001984,2]
[408076408,1773112243113,-253.548355,0.0001984,2]
[408076409,1773112243125,-574.893454,0.0001984,2]
[408076410,1773112243134,-574.893454,0.0001984,2]
[408076411,1773112243143,-574.893454,0.0001984,2]
[408076412,1773112243152,-151.0,0.0001984,2]
[408076413,1773112243162,-151.0,0.0001984,2]
[408076414,1773112243171,-151.0,0.0001984,2]
[408076415,1773112243180,-151.0,0.0001984,2]
[408076416,1773112243189,-157.696963,0.0001984,2]
[408076417,1773112243198,-9830.2576311,0.0001984,2]
[408076418,1773112243208,-151.0,0.0001984,2]
[408076419,1773112243217,-151.0,0.0001984,2]
[408076421,1773112243226,-151.0,0.0001984,2]
[408076422,1773112243235,-151.0,0.0001984,2]
[408076423,1773112243243,-151.0,0.0001984,2]
[408076424,1773112243251,-164.746908,0.0001984,2]
[408076425,1773112243260,-171.745036,0.0001984,2]
[408076426,1773112243270,-178.129445,0.0001984,2]
[408076427,1773112243279,-151.0,0.0001984,2]
[408076428,1773112243288,-151.0,0.0001984,2]
[408076429,1773112243298,-151.0,0.0001984,2]
[408076430,1773112243307,-159.195226,0.0001984,2]
[408076431,1773112243316,-151.0,0.0001984,2]
[408076432,1773112243326,-151.0,0.0001984,2]
[408076433,1773112243335,-187.969765,0.0001984,2]
[408076434,1773112243345,-187.969765,0.0001984,2]
[408076435,1773112243354,-1377.721962,0.0001984,2]
[408076436,1773112243363,-1377.721962,0.0001984,2]
[408076437,1773112243372,-1377.721962,0.0001984,2]
[408076438,1773112243381,-151.0,0.0001984,2]
[408076439,1773112243391,-151.0,0.0001984,2]
[408076440,1773112243400,-151.0,0.0001984,2]
[408076441,1773112243409,-261.536985,0.0001984,2]
[408076442,1773112243419,-151.0,0.0001984,2]
[408076443,1773112243429,-238.811072,0.0001984,2]
[408076444,1773112243438,-151.0,0.0001984,2]
[408076445,1773112243448,-1182.903312,0.0001984,2]
[408076446,1773112243457,-151.0,0.0001984,2]
[408076447,1773112243467,-1182.903312,0.0001984,2]
[408076448,1773112243476,-151.0,0.0001984,2]
[408076449,1773112243486,-316.322935,0.0001984,2]
[408076450,1773112243495,-1182.903312,0.0001984,2]
[408076451,1773112243504,-151.0,0.0001984,2]
[408076452,1773112243513,-1861.547374,0.0001984,2]
[408076453,1773112243523,-151.0,0.0001984,2]
[408076454,1773112243532,-1182.903312,0.0001984,2]
[408076455,1773112243542,-316.322935,0.0001984,2]
[408076456,1773112243551,-275.760757,0.0001984,2]
[408076457,1773112243561,-1861.547374,0.0001984,2]
[408076458,1773112243581,-151.0,0.0001984,2]
[408076459,1773112243600,-175.628092,0.0001984,2]
[408076460,1773112243609,-316.322935,0.0001984,2]
[408076461,1773112243618,-151.0,0.0001984,2]
[408076462,1773112243628,-1861.547374,0.0001984,2]
[408076463,1773112243645,-316.322935,0.0001984,2]
[408076464,1773112243654,-151.0,0.0001984,2]
[408076465,1773112243663,-1861.547374,0.0001984,2]
[408076466,1773112243672,-151.0,0.0001984,2]
[408076467,1773112243682,-151.0,0.0001984,2]
[408076468,1773112243691,-230.880756,0.0001984,2]
[408076469,1773112243700,-151.0,0.0001984,2]
[408076470,1773112243709,-151.0,0.0001984,2]
[408076471,1773112243718,-207.708668,0.0001984,2]
[408076472,1773112243727,-151.0,0.0001984,2]
[408076473,1773112243737,-278.687678,0.0001984,2]
[408076474,1773112243746,-278.687678,0.0001984,2]
[408076475,1773112243756,-151.0,0.0001984,2]
[408076476,1773112243765,-278.687678,0.0001984,2]
[408076477,1773112243774,-154.532111,0.0001984,2]
[408076478,1773112243788,-278.687678,0.0001984,2]
[408076479,1773112243798,-151.0,0.0001984,2]
[408076480,1773112243808,-151.0,0.0001984,2]
[408076481,1773112243817,-151.0,0.0001984,2]
[408076482,1773112243828,-151.0,0.0001984,2]
[408076483,1773112243838,-151.0,0.0001984,2]
[408076484,1773112243847,-168.43846,0.0001984,2]
[408076485,1773112243857,-168.43846,0.0001984,2]
[408076486,1773112243869,-168.43846,0.0001984,2]
[408076487,1773112243878,-168.43846,0.0001984,2]
[408076488,1773112243887,-151.0,0.0001984,2]
[408076489,1773112243897,-228.371361,0.0001984,2]
[408076490,1773112243906,-151.0,0.0001984,2]
[408076491,1773112243915,-228.371361,0.0001984,2]
[408076492,1773112243924,-151.0,0.0001984,2]
[408076493,1773112243933,-228.371361,0.0001984,2]
[408076494,1773112243942,-215.770622,0.0001984,2]
[408076495,1773112243951,-151.0,0.0001984,2]
[408076496,1773112243960,-151.0,0.0001984,2]
[408076497,1773112243969,-228.371361,0.0001984,2]
[408076498,1773112243978,-1006.974846,0.0001984,2]
[408076499,1773112243988,-1006.974846,0.0001984,2]
[408076500,1773112243997,-1006.974846,0.0001984,2]
[408076501,1773112244006,-1006.974846,0.0001984,2]
[408076502,1773112244016,-995.518115,0.0001984,2]
[408076503,1773112244026,-995.518115,0.0001984,2]
[408076504,1773112244035,-995.518115,0.0001984,2]
[408076505,1773112244044,-995.518115,0.0001984,2]
[408076506,1773112244053,-152.497116,0.0001984,2]
[408076507,1773112244063,-151.0,0.0001984,2]
[408076508,1773112244072,-151.0,0.0001984,2]
[408076509,1773112244082,-151.0,0.0001984,2]
[408076510,1773112244092,-151.0,0.0001984,2]
[408076511,1773112244106,-151.0,0.0001984,2]
[408076512,1773112244116,-151.0,0.0001984,2]
[408076513,1773112244126,-151.000024,0.0001984,2]
[408076514,1773112244136,-3263.55543,0.0001984,2]
[408076515,1773112244145,-2131.7687067,0.0001984,2]
[408076516,1773112244154,-3263.55543,0.0001984,2]
[408076517,1773112244163,-152.757277,0.0001984,2]
[408076518,1773112244173,-151.0,0.0001984,2]
[408076519,1773112244182,-3263.55543,0.0001984,2]
[408076520,1773112244191,-151.0,0.0001984,2]
[408076521,1773112244200,-155.903725,0.0001984,2]
[408076522,1773112244209,-151.0,0.0001984,2]
[408076523,1773112244218,-3263.55543,0.0001984,2]
[408076524,1773112244227,-151.0,0.0001984,2]
[408076525,1773112244237,-151.0,0.0001984,2]
[408076527,1773112244246,-151.0,0.0001984,2]
[408076529,1773112244256,-151.0,0.0001984,2]
[408076530,1773112244265,-151.0,0.0001984,2]
[408076531,1773112244274,-704.464347,0.0001984,2]
[408076532,1773112244283,-704.464347,0.0001984,2]
[408076533,1773112244292,-570.783273,0.0001984,2]
[408076534,1773112244302,-805.526634,0.0001984,2]
[408076535,1773112244311,-924.068344,0.0001984,2]
[408076536,1773112244320,-704.464347,0.0001984,2]
[408076537,1773112244329,-570.783273,0.0001984,2]
[408076538,1773112244338,-805.526634,0.0001984,2]
[408076539,1773112244348,-924.068344,0.0001984,2]
[408076542,1773112244358,-570.783273,0.0001984,2]
[408076544,1773112244367,-704.464347,0.0001984,2]
[408076546,1773112244376,-805.526634,0.0001984,2]
[408076548,1773112244385,-924.068344,0.0001984,2]
[408076549,1773112244394,-570.783273,0.0001984,2]
[408076550,1773112244404,-805.526634,0.0001984,2]
[408076551,1773112244414,-924.068344,0.0001984,2]
[408076552,1773112244422,-647.376851,0.0001984,2]
[408076553,1773112244432,-647.376851,0.0001984,2]